Workbook

Sheet Sheet1
A1: WEIGHT PERCENT | E1: Raw Data NORMALIZED to sum to 100%
A3: WELL NAME | B3: Twist About Prospect - Lewis HRS PI-1
A4: JOB # | B4: 15-0202
A5: SAMPLE ID | B5: 1 | C5: 2 | D5: 3 | E5: 4 | F5: 5 | G5: 6 | H5: 7 | I5: 8 | J5: 9
A6: SAMPLE DEPTH | B6: 2045.50 | C6: 2049.60 | D6: 2051.20 | E6: 2056.30 | F6: 2070.20 | G6: 2077.60 | H6: 2084.80 | I6: 2089.60 | J6: 2096.60
A8: NON-CLAY FRACTION
A9: Quartz | B9: 3.248035596 | C9: 25.92691278 | D9: 84.71168682 | E9: 81.32478011 | F9: 77.51322642 | G9: 66.49284799 | H9: 26.24535728 | I9: 69.61124869 | J9: 76.6676239
A10: K-Feldspar | B10: 0 | C10: 0.2363955139 | D10: 0.8588590624 | E10: 0.9304266984 | F10: 1.491738598 | G10: 1.204944609 | H10: 0.5518375977 | I10: 0.5505486502 | J10: 1.857923866
A11: Plagioclase | B11: 0.07075804658 | C11: 0.819712895 | D11: 1.221654907 | E11: 2.436987337 | F11: 2.534324046 | G11: 2.558112548 | H11: 0 | I11: 2.088278337 | J11: 2.811672907
A12: Organic Carbon (TOC) | B12: 0 | C12: 0 | D12: 0 | E12: 0 | F12: 0 | G12: 0 | H12: 0.218 | I12: 0 | J12: 0
A13: Apatite | B13: 0 | C13: 0 | D13: 0 | E13: 0 | F13: 0 | G13: 0 | H13: 0 | I13: 0.8998203653 | J13: 0
A14: Pyrite | B14: 0 | C14: 0 | D14: 0 | E14: 0 | F14: 0 | G14: 0 | H14: 0 | I14: 0 | J14: 0
A15: Calcite | B15: 5.974674885 | C15: 9.562669264 | D15: 0.3064727202 | E15: 0.1442230527 | F15: 0 | G15: 0 | H15: 0 | I15: 0 | J15: 0.2201920881
A16: Dolomite | B16: 90.70653147 | C16: 57.36386622 | D16: 0.2352182306 | E16: 0.2755202023 | F16: 0 | G16: 7.908684576 | H16: 0 | I16: 4.690547795 | J16: 0.2525895555
A17: Siderite | B17: 0 | C17: 0.2750577093 | D17: 0.1828516424 | E17: 0.4740338608 | F17: 0 | G17: 3.419086726 | H17: 0 | I17: 3.353118498 | J17: 0
A18: Halite | B18: 0 | C18: 0 | D18: 0.5270987126 | E18: 0.1115204464 | F18: 0.1031682787 | G18: 0.1495396106 | H18: 0 | I18: 0.2656409507 | J18: 0.1004612176
A19: TOTAL | B19: =SUM(B9:B18) -> 100 | C19: =SUM(C9:C18) -> 94.18461439 | D19: =SUM(D9:D18) -> 88.04384209 | E19: =SUM(E9:E18) -> 85.69749171 | F19: =SUM(F9:F18) -> 81.64245735 | G19: =SUM(G9:G18) -> 81.73321606 | H19: =SUM(H9:H18) -> 27.01519488 | I19: =SUM(I9:I18) -> 81.45920328 | J19: =SUM(J9:J18) -> 81.91046353
A21: CLAY FRACTION
A22: Mixed-Layer ILLITE/SMECTITE (Includes R3) | B22: 0 | C22: 0.5293569733 | D22: 0.2333652827 | E22: 0.3579225955 | F22: 0.8188963359 | G22: 0.7592670889 | H22: 5.595715082 | I22: 0.9543230154 | J22: 1.025854921
A23: Illite+Mica | B23: 0 | C23: 4.821998132 | D23: 7.631699306 | E23: 9.033201284 | F23: 11.07062688 | G23: 11.46127016 | H23: 56.48682919 | I23: 10.82083216 | J23: 10.43804647
A24: Chlorite | B24: 0 | C24: 0 | D24: 1.765569291 | E24: 3.043429212 | F24: 4.74919875 | G24: 3.822850493 | H24: 7.726245462 | I24: 4.664555404 | J24: 4.685776966
A25: Kaolinite | B25: 0 | C25: 0.4640305032 | D25: 2.325524026 | E25: 1.867955199 | F25: 1.718820691 | G25: 2.223396196 | H25: 3.176015395 | I25: 2.101086137 | J25: 1.939858111
A26: TOTAL | B26: =SUM(B22:B25) -> 0 | C26: =SUM(C22:C25) -> 5.815385608 | D26: =SUM(D22:D25) -> 11.95615791 | E26: =SUM(E22:E25) -> 14.30250829 | F26: =SUM(F22:F25) -> 18.35754265 | G26: =SUM(G22:G25) -> 18.26678394 | H26: =SUM(H22:H25) -> 72.98480512 | I26: =SUM(I22:I25) -> 18.54079672 | J26: =SUM(J22:J25) -> 18.08953647
A28: GRAND TOTAL | B28: =B26+B19 -> 100 | C28: =C26+C19 -> 100 | D28: =D26+D19 -> 100 | E28: =E26+E19 -> 100 | F28: =F26+F19 -> 100 | G28: =G26+G19 -> 100 | H28: =H26+H19 -> 100 | I28: =I26+I19 -> 100 | J28: =J26+J19 -> 100
A30: % Expandable Layers in I/S | B30: n/a | C30: 15.69503303 | D30: 15.30642703 | E30: 18.16983969 | F30: 12.13622015 | G30: 15.69503303 | H30: 12.51119086 | I30: 15.69503303 | J30: 20.35148744
A31: % I/S to Illite in <1.0um Fraction | B31: 0 | C31: 10.87776198 | D31: 4.940486084 | E31: 7.591352774 | F31: 11.17411101 | G31: 10.87776198 | H31: 14.31522521 | I31: 10.87776198 | J31: 16.3676348
A32: % Expandable I/S Layers in sample | B32: n/a | C32: 0.08308275182 | D32: 0.03571988671 | E32: 0.06503396182 | F32: 0.09938306213 | G32: 0.1191672204 | H32: 0.7016201255 | I32: 0.1497813125 | J32: 0.2087767353
A34: % Fe in 1st/primary Dolomite/Ankerite | B34: 27.9295607 | C34: 45.6052734 | G34: 30.6680514 | I34: 29.9211903
A35: % Fe in 2nd Dolomite/Ankerite | G35: 89.919032 | I35: 87.429495
A37: Comments
A40: Some samples did not have enough resolution with normal XRD runs to determine
A41: clay expandability. For these samples, approximate average was used (highlighted in orange).
